bitfinex/quotes_BTCUSD_20260215
["timestamp","ask_amount","ask_price","bid_price","bid_amount"]
[1771129682578,0.00012991,70249.0,70232.0,0.02302965]
[1771129682745,0.07117872,70246.0,70231.0,0.02302965]
[1771129682954,0.07117737,70248.0,70240.0,0.07118429]
[1771129683151,0.00012991,70249.0,70240.0,0.07118429]
[1771129683394,0.00012991,70249.0,70244.0,0.002]
[1771129683804,0.07130536,70249.0,70244.0,0.002]
[1771129684033,0.00012991,70249.0,70233.0,0.0711916]
[1771129684207,0.07117832,70247.0,70239.0,0.07118551]
[1771129684450,0.005,70248.0,70240.0,0.002]
[1771129684566,0.07117741,70247.0,70237.0,0.07118735]
[1771129684772,0.07117993,70245.0,70237.0,0.07118735]
[1771129684991,0.07117993,70245.0,70244.0,0.002]
[1771129686025,0.07117993,70245.0,70237.0,0.07118735]
[1771129686476,0.07117868,70246.0,70240.0,0.002]
[1771129686689,0.007,70248.0,70240.0,0.07303564]
[1771129686854,0.0004,70246.0,70241.0,0.07118349]
[1771129687057,0.004,70245.0,70241.0,0.02302965]
[1771129687259,0.0004,70246.0,70241.0,0.02302965]
[1771129688166,0.0004,70277.0,70250.0,0.00012]
[1771129688394,0.00014797,70267.0,70266.0,0.07115817]
[1771129688596,0.00014797,70267.0,70261.0,0.02302965]
[1771129688800,0.00014797,70267.0,70263.0,0.02302965]
[1771129689020,0.00014797,70267.0,70264.0,0.07116019]
[1771129689239,0.00014797,70267.0,70263.0,0.02302965]
[1771129690044,0.00014797,70267.0,70264.0,0.07115973]
[1771129690348,0.00014797,70267.0,70266.0,0.07115817]
[1771129690530,0.00014797,70267.0,70264.0,0.02302965]
[1771129690531,0.00614797,70267.0,70265.0,0.07115896]
[1771129690728,0.00614797,70267.0,70264.0,0.02302965]
[1771129690729,0.00614797,70267.0,70264.0,0.09418981]
[1771129690956,0.00614797,70267.0,70264.0,0.02302965]
[1771129691158,0.00014797,70267.0,70264.0,0.02302965]
[1771129691363,0.00014797,70267.0,70264.0,0.09418981]
[1771129691559,0.00514797,70267.0,70266.0,0.002]
[1771129692170,0.00514797,70267.0,70266.0,0.07315817]
[1771129692842,0.00014797,70267.0,70266.0,0.07115817]
[1771129693044,0.00214797,70267.0,70264.0,0.09618981]
[1771129693365,0.00014797,70267.0,70264.0,0.02302965]
[1771129693761,0.00414797,70267.0,70266.0,0.001]
[1771129693939,0.00014797,70267.0,70264.0,0.02302965]
[1771129694137,0.0001008,70267.0,70264.0,0.02302965]
[1771129694357,0.0041008,70267.0,70264.0,0.09518952]
[1771129694585,0.0005008,70267.0,70264.0,0.09418952]
[1771129694786,0.0005008,70267.0,70266.0,0.07115817]
[1771129695015,0.0045008,70267.0,70266.0,0.001]
[1771129695217,0.0045008,70267.0,70261.0,0.07116238]
[1771129695420,0.0045008,70267.0,70258.0,0.02265114]
[1771129695421,0.0045008,70267.0,70259.0,0.07116482]
[1771129695553,0.0045008,70267.0,70251.0,0.02265114]
[1771129695756,0.29835165,70261.0,70253.0,0.07117039]
[1771129696011,0.29835165,70261.0,70256.0,4.5e-05]
[1771129696217,0.02274522,70261.0,70256.0,4.5e-05]
[1771129696427,0.00052,70280.0,70257.0,0.57457479]
[1771129696628,0.00052,70280.0,70267.0,0.29835165]
[1771129696768,1e-08,70280.0,70279.0,0.0533455]
[1771129696963,0.07114613,70278.0,70270.0,0.00012]
[1771129697193,0.00017313,70277.0,70270.0,0.00012]
[1771129697395,0.00017313,70277.0,70270.0,0.07127378]
[1771129697566,0.00217313,70277.0,70270.0,0.07127378]
[1771129697774,0.00017313,70277.0,70270.0,0.07127378]
[1771129698215,0.00017313,70277.0,70271.0,0.07115296]
[1771129699039,0.00017313,70277.0,70271.0,0.0938041]
[1771129699219,0.00017313,70277.0,70271.0,0.07115296]
[1771129699425,0.00017313,70277.0,70270.0,0.07127216]
[1771129699625,0.00017313,70277.0,70271.0,0.07115255]
[1771129699799,0.00317313,70277.0,70271.0,0.07215255]
[1771129700009,0.00017313,70277.0,70271.0,0.07115255]
[1771129700407,0.00417313,70277.0,70271.0,0.07215255]
[1771129700819,0.00417313,70277.0,70271.0,0.001]
[1771129701041,0.00417313,70277.0,70271.0,0.07215269]
[1771129701601,0.0002149,70281.0,70273.0,0.07115028]
[1771129701800,0.0002149,70281.0,70271.0,0.07215268]
[1771129701801,0.07114521,70279.0,70271.0,0.07215268]
[1771129702125,0.07114521,70279.0,70271.0,0.07115268]
[1771129702328,0.5558199,70280.0,70270.0,0.00012]
[1771129702527,0.07114996,70275.0,70271.0,0.001]
[1771129702729,0.07114996,70275.0,70270.0,0.00012]
[1771129703136,0.07114996,70275.0,70262.0,0.28464624]
[1771129703137,0.34128,70277.0,70250.0,0.00012]
[1771129703347,0.07116622,70259.0,70250.0,0.07129409]
[1771129703579,0.87259536,70260.0,70251.0,0.07117257]
[1771129703780,0.87259536,70260.0,70252.0,0.07117235]
[1771129704135,1e-08,70270.0,70269.0,0.07115513]
[1771129705667,0.34128,70287.0,70280.0,0.07114399]
[1771129705867,0.34128,70287.0,70280.0,0.09379513]
[1771129706151,0.34128,70287.0,70281.0,0.07114275]
[1771129707049,0.0148704,70284.0,70281.0,0.07114275]
[1771129707371,0.01842381,70283.0,70274.0,0.07114935]
[1771129707563,0.08601051,70284.0,70276.0,0.07114781]
[1771129708331,0.0128704,70284.0,70277.0,0.07114692]
[1771129708535,0.0128704,70284.0,70281.0,0.001]
[1771129708536,0.08501046,70284.0,70281.0,0.001]
[1771129708923,0.08401046,70284.0,70275.0,0.07114807]
[1771129709227,0.08701046,70284.0,70276.0,0.001]
[1771129709572,0.08401046,70284.0,70276.0,0.07114772]
[1771129709775,0.08541046,70284.0,70281.0,0.001]
[1771129710013,0.10283427,70284.0,70276.0,0.07114772]
[1771129710240,0.80011205,70315.0,70290.0,0.02277114]
[1771129710241,0.01279642,70314.0,70290.0,0.02277114]
[1771129710411,0.01279642,70314.0,70291.0,0.02265114]
[1771129710412,0.0004,70299.0,70291.0,0.02265114]
[1771129710636,0.0004,70299.0,70292.0,0.07113184]
[1771129710834,0.0004,70299.0,70290.0,0.00012]
[1771129710971,0.3414,70298.0,70290.0,0.00012]
[1771129711155,0.3414,70298.0,70291.0,0.07113269]
[1771129711363,0.3414,70298.0,70290.0,0.071253]
[1771129711567,0.3414,70298.0,70291.0,0.07113259]
[1771129712017,0.0004,70299.0,70291.0,0.07113259]
[1771129712317,0.3414,70298.0,70292.0,0.07113148]
[1771129712526,0.3474,70298.0,70292.0,0.07113148]
[1771129712692,0.3414,70298.0,70292.0,0.07113148]
[1771129713078,0.3414,70298.0,70289.0,0.07113453]
[1771129713319,0.41252581,70298.0,70290.0,0.0711338]
[1771129713462,0.41252581,70298.0,70284.0,0.27762777]
[1771129713674,0.41252581,70298.0,70289.0,0.07113418]
[1771129713894,0.41252581,70298.0,70280.0,0.28469231]
[1771129713895,0.5558199,70296.0,70280.0,0.00012]
[1771129714101,0.57424371,70294.0,70286.0,0.07113727]
[1771129714300,0.07113106,70293.0,70285.0,0.07113887]
[1771129714503,0.5558199,70293.0,70284.0,0.071138]
[1771129714703,0.57424371,70293.0,70292.0,0.003]
[1771129714905,0.57424371,70293.0,70280.0,0.00012]
[1771129715150,0.3414,70292.0,70286.0,0.07113707]
[1771129715359,0.3414,70292.0,70286.0,0.07413707]
[1771129715563,0.5558199,70292.0,70273.0,0.57457479]
[1771129715762,0.5558199,70292.0,70270.0,0.00012]
[1771129715763,0.5558199,70286.0,70278.0,0.07114563]
[1771129715943,0.02264442,70284.0,70277.0,0.07114616]
[1771129716342,0.02264442,70283.0,70270.0,0.00012]
[1771129716546,0.5558199,70282.0,70280.0,0.07114392]
[1771129716761,0.02264442,70281.0,70280.0,0.07114392]
[1771129716975,0.02264442,70281.0,70278.0,0.07114598]
[1771129717624,0.36404442,70281.0,70273.0,0.008]
[1771129717828,0.36404442,70281.0,70275.0,0.07114886]
[1771129718408,0.02264442,70280.0,70275.0,0.07114886]
[1771129718605,0.02264442,70280.0,70274.0,0.07114991]
[1771129718929,0.02264442,70280.0,70275.0,0.01]
[1771129719129,0.02264442,70280.0,70274.0,0.07114991]
[1771129719434,0.02664442,70280.0,70275.0,0.012]
[1771129719630,0.02264442,70279.0,70275.0,0.08314895]
[1771129719835,0.02264442,70279.0,70276.0,0.07114786]
[1771129720248,0.02264442,70279.0,70273.0,0.07115069]
[1771129720490,0.02264442,70277.0,70273.0,0.07115069]
[1771129721036,0.02442455,70277.0,70275.0,2e-08]
[1771129721147,0.61611504,70276.0,70275.0,2e-08]
[1771129721348,0.07115641,70268.0,70263.0,0.0002]
[1771129721574,0.07115641,70268.0,70263.0,0.00033008]
[1771129721774,0.07115718,70267.0,70263.0,0.00033008]
[1771129721977,0.34139997,70269.0,70263.0,0.00033008]
[1771129722659,0.41255585,70269.0,70263.0,0.00033008]
[1771129723098,0.34139997,70269.0,70263.0,0.00033008]
[1771129723297,0.07116019,70264.0,70263.0,0.00033008]
[1771129724759,0.07116323,70261.0,70260.0,0.00012]
[1771129725165,0.07116525,70259.0,70248.0,0.0002]
[1771129725374,0.07116993,70255.0,70248.0,0.0002]
[1771129726017,0.07116833,70256.0,70248.0,0.07137632]
[1771129726465,0.07116833,70256.0,70248.0,0.07137602]
[1771129726974,0.07116952,70255.0,70248.0,0.0002]
[1771129727130,0.07116833,70256.0,70248.0,0.07137591]
[1771129727469,0.07116931,70255.0,70248.0,0.0002]
[1771129727668,0.07116833,70256.0,70248.0,0.0002]
[1771129727966,0.07117336,70251.0,70248.0,0.0002]
[1771129729414,0.007,70251.0,70248.0,0.0002]
[1771129729822,0.007,70251.0,70240.0,0.00012]
[1771129729823,0.07118349,70241.0,70240.0,0.00012]
[1771129730059,0.07118349,70241.0,70240.0,0.00024991]
[1771129730262,0.5466298,70248.0,70240.0,0.00024991]
[1771129730263,0.07118171,70243.0,70240.0,0.00024991]
[1771129730462,0.07118147,70243.0,70240.0,0.00024991]
[1771129730637,0.07118102,70244.0,70240.0,0.00024991]
[1771129730638,0.07118268,70242.0,70240.0,0.00024991]
[1771129731056,0.007,70241.0,70240.0,0.00044991]
[1771129731263,0.07118349,70241.0,70240.0,0.00044991]
[1771129731845,0.07118268,70242.0,70232.0,0.0002]
[1771129731846,0.07118552,70239.0,70232.0,0.0002]
[1771129732031,0.07118653,70238.0,70232.0,0.0002]
[1771129732237,0.07118628,70239.0,70232.0,0.0002]
[1771129732535,0.07118739,70238.0,70232.0,0.0002]
[1771129733280,0.07118556,70239.0,70232.0,0.0002]
[1771129734390,0.07818556,70239.0,70232.0,0.07139226]
[1771129735126,0.007,70239.0,70233.0,0.07119089]
[1771129735425,0.07818594,70239.0,70232.0,0.0002]
[1771129736770,0.07118594,70239.0,70232.0,0.07139255]
[1771129737110,0.08118594,70239.0,70232.0,0.07139255]
[1771129737353,0.07118594,70239.0,70232.0,0.0002]
[1771129737682,0.07118675,70238.0,70232.0,0.0002]
[1771129737967,0.07119034,70235.0,70232.0,0.0002]
[1771129738161,0.02317046,70235.0,70232.0,0.0002]
[1771129738336,0.34139997,70234.0,70231.0,0.0003261]
[1771129738541,0.36457043,70234.0,70230.0,0.00012]
[1771129739059,0.41259058,70234.0,70230.0,0.00012]
[1771129739261,0.34139997,70234.0,70230.0,0.00012]
[1771129739419,0.36457043,70234.0,70230.0,0.00012]
[1771129739813,0.09436531,70230.0,70225.0,0.0002]
[1771129740069,0.02317046,70230.0,70225.0,0.0002]
[1771129740371,0.34139997,70234.0,70220.0,0.00012]
[1771129740372,0.0711987,70226.0,70220.0,0.00012]
[1771129740727,0.07120214,70223.0,70220.0,0.00012]
[1771129740930,0.07120324,70222.0,70217.0,0.0002]
[1771129741159,0.07120463,70221.0,70217.0,0.0002]
[1771129741357,0.02317046,70221.0,70217.0,0.0002]
[1771129741560,0.09437444,70221.0,70217.0,0.0002]
[1771129741921,4.331e-05,70222.0,70217.0,0.0002]
[1771129742127,0.34139997,70221.0,70216.0,0.0002]
[1771129742656,0.34139997,70221.0,70216.0,0.02345048]
[1771129742838,0.34139997,70221.0,70217.0,0.07120692]
[1771129743647,0.34139997,70221.0,70216.0,0.02345048]
[1771129743648,0.00012,70230.0,70221.0,0.07120302]
[1771129743924,0.07119757,70228.0,70218.0,0.02325048]
[1771129744362,0.07119757,70228.0,70219.0,0.09445627]
[1771129744565,0.011,70221.0,70219.0,0.07120579]
[1771129744744,0.011,70221.0,70220.0,0.02325048]
[1771129745376,0.07119787,70227.0,70220.0,0.02325048]
[1771129746276,0.07119669,70228.0,70221.0,0.071203]
[1771129746480,0.07119669,70228.0,70220.0,0.09445522]
[1771129746680,0.08119669,70228.0,70220.0,0.09445522]
[1771129746877,0.07119669,70228.0,70220.0,0.09445522]
[1771129747409,0.01,70227.0,70220.0,0.09945522]
[1771129748008,0.08119771,70227.0,70220.0,0.09945522]
[1771129748214,0.07119771,70227.0,70220.0,0.09445522]
[1771129748596,0.08019669,70228.0,70220.0,0.09945522]
[1771129748999,0.07119772,70227.0,70220.0,0.09945522]
[1771129749382,0.009,70228.0,70216.0,0.0002]
[1771129749588,0.02317046,70226.0,70216.0,0.0002]
[1771129749804,0.09437741,70218.0,70216.0,0.0002]
[1771129750445,0.02317046,70218.0,70216.0,0.0002]
[1771129750653,0.07120331,70222.0,70216.0,0.0002]
[1771129750654,0.09437447,70221.0,70216.0,0.005]
[1771129750824,0.07120605,70219.0,70213.0,0.0003261]
[1771129751033,0.07120605,70219.0,70214.0,0.00033012]
[1771129751254,0.0842069,70218.0,70216.0,0.005]
[1771129751523,0.0712069,70218.0,70214.0,0.00033012]
[1771129752452,0.07120672,70220.0,70214.0,0.00033012]
[1771129752853,0.014,70219.0,70214.0,0.00133012]
[1771129753059,0.07120666,70219.0,70214.0,0.00033012]
[1771129753492,0.014,70218.0,70214.0,0.00133012]
[1771129753698,0.08520696,70218.0,70214.0,0.00133012]
[1771129753890,0.07120696,70218.0,70214.0,0.00033012]
[1771129754724,0.08720696,70218.0,70214.0,0.00033012]
[1771129755007,0.016,70218.0,70210.0,0.00032]
[1771129755182,0.07120871,70217.0,70210.0,0.00075478]
[1771129756896,0.08820871,70217.0,70210.0,0.00175478]
[1771129757097,0.017,70217.0,70210.0,0.34267478]
[1771129757299,0.28479321,70227.0,70212.0,0.0949251]
[1771129757499,0.07120604,70219.0,70212.0,0.0949251]
[1771129757708,0.016,70217.0,70212.0,0.0949251]
[1771129757905,0.02272424,70222.0,70210.0,0.34167478]
[1771129758105,0.07121046,70215.0,70210.0,0.34167478]
[1771129758529,0.07120894,70216.0,70210.0,0.34167478]
[1771129759198,0.07120894,70216.0,70210.0,0.34567478]
[1771129759398,0.07120894,70216.0,70210.0,0.34167478]
[1771129759855,0.07920894,70216.0,70210.0,0.34567478]
[1771129760031,0.07120894,70216.0,70210.0,0.34167478]
[1771129760435,0.07920894,70216.0,70210.0,0.34567478]
[1771129760641,0.07120894,70216.0,70210.0,0.34167478]
[1771129761007,0.07920894,70216.0,70210.0,0.34567478]
[1771129761214,0.07120995,70215.0,70210.0,0.34567478]
[1771129761614,0.02272424,70214.0,70210.0,0.34567478]
[1771129762142,0.28482898,70218.0,70210.0,0.34167478]
[1771129762467,0.008,70216.0,70205.0,0.07141929]
[1771129762668,0.02272424,70215.0,70202.0,0.34112]
[1771129762882,0.00843395,70216.0,70202.0,0.34112]
[1771129762883,0.07121782,70208.0,70202.0,0.34112]
[1771129763087,0.07121624,70209.0,70202.0,0.34112]
[1771129763609,0.07121729,70208.0,70202.0,0.34112]
[1771129763743,0.07121861,70207.0,70205.0,0.005]
[1771129763951,0.07121817,70207.0,70202.0,0.34112]
[1771129764819,0.0712191,70206.0,70196.0,0.07122858]
[1771129765113,0.07121981,70207.0,70203.0,0.34092]
[1771129765641,0.02262214,70206.0,70203.0,0.34092]
[1771129765844,0.07121137,70214.0,70203.0,0.34092]
[1771129766037,0.07121426,70211.0,70205.0,0.57661488]
[1771129766169,0.07121512,70210.0,70206.0,0.0231711]
[1771129766575,0.008,70207.0,70206.0,0.0231711]
[1771129766780,0.07121393,70211.0,70204.0,0.07122065]
[1771129766981,0.07121504,70210.0,70203.0,0.41214167]
[1771129767185,0.008,70210.0,70206.0,0.005]
[1771129768021,0.07921512,70210.0,70206.0,0.005]
[1771129768429,0.07121512,70210.0,70203.0,0.41214169]
[1771129768599,0.007,70207.0,70206.0,0.004]
[1771129769048,0.07121512,70210.0,70203.0,0.41214169]
[1771129769349,0.08121512,70210.0,70206.0,0.004]
[1771129769550,0.07121481,70212.0,70204.0,0.07122095]
[1771129769695,0.07121404,70211.0,70204.0,0.07122095]
[1771129769899,0.007,70207.0,70206.0,0.004]
[1771129770148,0.07121526,70210.0,70203.0,0.4353129]
[1771129770365,0.00083395,70216.0,70203.0,0.34092]
[1771129770577,0.01229203,70227.0,70217.0,0.07120723]
[1771129770727,0.07119997,70225.0,70218.0,0.3640911]
[1771129771176,0.07119997,70225.0,70218.0,0.4352974]
[1771129771372,0.07119997,70225.0,70219.0,0.0231711]
[1771129771533,0.01229203,70227.0,70219.0,0.0231711]
[1771129771735,0.00052,70230.0,70223.0,0.0231711]
[1771129771961,0.07119657,70229.0,70223.0,0.0231711]
[1771129772700,0.01,70224.0,70223.0,0.0231711]
[1771129772827,0.07119565,70229.0,70223.0,0.0231711]
[1771129773223,0.011,70229.0,70226.0,0.07119856]
[1771129773476,0.011,70229.0,70226.0,0.34092]
[1771129773712,0.0004,70236.0,70227.0,0.59978598]
[1771129773839,0.0004,70236.0,70230.0,0.07119391]
[1771129774024,0.0004,70236.0,70231.0,0.07119342]
[1771129774431,0.0004,70236.0,70228.0,0.07119667]
[1771129774784,0.0004,70236.0,70233.0,0.0231711]
[1771129775009,0.0004,70236.0,70234.0,0.34092]
[1771129775392,0.0134,70236.0,70234.0,0.34092]
[1771129775619,0.07118273,70242.0,70234.0,0.34092]
[1771129775620,0.07118139,70245.0,70235.0,0.07118957]
[1771129775785,0.07118139,70245.0,70236.0,0.0231711]
[1771129775970,0.07118079,70244.0,70236.0,0.09421123]
[1771129776170,0.07118248,70242.0,70236.0,0.02302306]
[1771129776498,0.0004,70249.0,70236.0,0.09421126]
[1771129776499,0.07118133,70245.0,70236.0,0.09421126]
[1771129776892,0.07118069,70244.0,70236.0,0.09421126]
[1771129777572,0.07157631,70249.0,70236.0,0.57661488]
[1771129777777,0.07117768,70247.0,70239.0,0.07118456]
[1771129778019,0.07117865,70246.0,70238.0,0.07118645]
[1771129778357,0.00053019,70249.0,70235.0,4.5e-05]
[1771129778534,0.00053019,70249.0,70237.0,0.57661488]
[1771129778860,0.00053019,70249.0,70242.0,0.07118154]
[1771129778861,0.00253019,70249.0,70242.0,0.07118154]
[1771129779061,0.00053019,70249.0,70243.0,0.41210127]
[1771129779222,0.00053019,70249.0,70243.0,0.34092]
[1771129779430,0.002,70246.0,70243.0,0.34092]
[1771129780440,0.02262214,70239.0,70230.0,0.00012]
[1771129780601,0.0711853,70240.0,70232.0,0.07119253]
[1771129780797,0.07118856,70236.0,70230.0,0.00012]
[1771129781024,0.07118856,70236.0,70230.0,0.000165]
[1771129781355,0.02262214,70243.0,70230.0,0.000165]
[1771129781524,0.07119052,70235.0,70230.0,0.000165]
[1771129781936,0.07119116,70234.0,70230.0,0.000165]
[1771129782139,0.07119116,70234.0,70230.0,0.002165]
[1771129782341,0.07119052,70235.0,70230.0,0.000165]
[1771129782497,0.07118666,70238.0,70230.0,0.000165]
[1771129782697,0.007,70235.0,70230.0,0.002165]
[1771129782921,0.07118758,70237.0,70230.0,0.000165]
[1771129783124,0.07118856,70236.0,70230.0,0.000165]
[1771129783460,0.004,70234.0,70231.0,0.34096]
[1771129784419,0.07118971,70235.0,70231.0,0.34096]
[1771129784844,0.07418971,70235.0,70231.0,0.34096]
[1771129785075,0.07118971,70235.0,70231.0,0.34096]
[1771129785424,0.003,70234.0,70231.0,0.34296]
[1771129786112,0.07118966,70235.0,70231.0,0.34096]
[1771129786312,0.07518966,70235.0,70231.0,0.34296]
[1771129787501,0.07118966,70235.0,70231.0,0.34096]
[1771129787968,0.003,70234.0,70231.0,0.34296]
[1771129788165,0.07118966,70235.0,70231.0,0.34096]
[1771129788360,0.07518966,70235.0,70231.0,0.34296]
[1771129788805,0.07118966,70235.0,70231.0,0.34096]
[1771129789048,0.003,70234.0,70231.0,0.34296]
[1771129789437,0.07118771,70237.0,70231.0,0.34096]
[1771129789633,0.07118771,70237.0,70231.0,0.34081204]
[1771129790552,0.07118843,70238.0,70231.0,0.34081204]
[1771129790553,0.07118876,70236.0,70231.0,0.34081204]
[1771129790711,0.003,70235.0,70231.0,0.34301204]
[1771129790913,0.56701156,70233.0,70223.0,4.5e-05]
[1771129791114,0.02255444,70229.0,70223.0,0.0002]
[1771129791323,0.02255444,70229.0,70221.0,0.07120374]
[1771129792258,0.02255444,70225.0,70216.0,0.0002]
[1771129792457,0.02255444,70225.0,70221.0,0.002]
[1771129792458,0.02255444,70224.0,70221.0,0.002]
[1771129792776,0.02255444,70223.0,70221.0,0.002]
[1771129793314,0.005,70229.0,70221.0,0.002]
[1771129793616,0.005,70229.0,70220.0,0.07120418]
[1771129793617,0.07119799,70227.0,70220.0,0.07120418]
[1771129794066,0.07119799,70227.0,70221.0,0.003]
[1771129794257,0.07119799,70227.0,70220.0,0.07120418]
[1771129794437,0.07119799,70227.0,70218.0,0.07120641]
[1771129794635,0.07119799,70227.0,70221.0,0.003]
[1771129794867,0.07119957,70226.0,70218.0,0.07120641]
[1771129795268,0.07419788,70227.0,70221.0,0.004]
[1771129795483,0.07119258,70233.0,70223.0,0.07120101]
[1771129795629,0.07119258,70233.0,70222.0,0.28481102]
[1771129795832,0.07119264,70232.0,70225.0,0.07119903]
[1771129796050,0.07119264,70232.0,70224.0,0.07120051]
[1771129796051,0.0711938,70231.0,70224.0,0.07120051]
[1771129796280,0.07119264,70232.0,70225.0,0.07119898]
[1771129796852,0.0711919,70233.0,70226.0,0.34096]
[1771129797056,0.0731919,70233.0,70226.0,0.34096]
[1771129797257,0.0711919,70233.0,70226.0,0.34096]
[1771129797480,0.09374372,70236.0,70226.0,0.41215851]
[1771129797680,0.07118583,70239.0,70231.0,0.07119352]
[1771129797927,0.07118552,70239.0,70230.0,0.0711937]
[1771129798087,0.07118797,70237.0,70230.0,0.0711937]
[1771129798283,0.006,70233.0,70231.0,0.07119362]
[1771129798590,0.0711876,70237.0,70226.0,0.36517013]
[1771129798786,0.0711876,70237.0,70230.0,0.07119433]
[1771129799112,0.02255444,70239.0,70229.0,0.07119564]
[1771129799272,0.07118688,70238.0,70230.0,0.07119444]
[1771129799461,0.02255444,70239.0,70226.0,0.36517013]
[1771129799663,0.07118755,70237.0,70226.0,0.36517013]
[1771129799882,0.07118929,70236.0,70231.0,0.001]
[1771129800080,0.07119025,70235.0,70227.0,0.0711974]
[1771129800257,0.0937406,70239.0,70226.0,0.36517013]
[1771129800491,0.1137749,70271.0,70226.0,0.36517013]
[1771129800492,0.02295444,70249.0,70230.0,0.28577463]
[1771129800671,0.07117871,70246.0,70237.0,0.07118744]
[1771129800874,0.00049269,70243.0,70237.0,0.07118744]
[1771129801724,0.0004,70249.0,70236.0,0.91349747]
[1771129801940,0.0004,70249.0,70238.0,0.07118653]
[1771129802231,0.07117925,70246.0,70238.0,0.07118653]
[1771129802618,0.07118203,70243.0,70236.0,0.34096]
[1771129802814,0.0711829,70242.0,70236.0,0.34096]
[1771129803138,0.0711829,70242.0,70237.0,0.001]
[1771129803343,0.07118382,70241.0,70236.0,0.34096]
[1771129803662,0.0004,70249.0,70236.0,0.34096]
[1771129803840,0.07118583,70239.0,70237.0,0.34096]
[1771129804039,0.02255444,70239.0,70237.0,0.34096]
[1771129804249,0.02355444,70243.0,70237.0,0.34096]
[1771129804481,0.02255444,70240.0,70237.0,0.3219456]
[1771129804620,0.07118455,70240.0,70235.0,4.5e-05]
[1771129804822,0.09374177,70238.0,70237.0,0.003]
[1771129805793,0.07118559,70239.0,70235.0,1e-08]
[1771129805970,0.07118222,70243.0,70236.0,0.06770727]
[1771129806349,0.0711828,70242.0,70237.0,0.001]
[1771129806531,0.07118856,70236.0,70235.0,1e-08]
[1771129806734,0.56701156,70239.0,70230.0,0.00012]
[1771129806958,0.02255444,70234.0,70230.0,0.00012]
[1771129807185,0.02255444,70233.0,70230.0,0.00012]
[1771129807592,0.07118873,70236.0,70230.0,0.00012]
[1771129807742,0.56701156,70236.0,70228.0,0.07119644]
[1771129807952,0.02255444,70233.0,70225.0,0.07119792]
[1771129808360,0.02255444,70233.0,70226.0,0.0711987]
[1771129808793,0.02255444,70233.0,70227.0,0.07119719]
[1771129808950,0.02255444,70233.0,70228.0,0.07119649]
[1771129809345,0.02255444,70233.0,70227.0,0.07119745]
[1771129809575,0.02255444,70233.0,70228.0,0.07119629]
[1771129809910,0.07118884,70236.0,70228.0,0.07119583]
[1771129810100,0.002,70234.0,70230.0,0.002]
[1771129810273,0.07118884,70236.0,70228.0,0.07119583]
[1771129810643,0.002,70233.0,70229.0,0.0711951]
[1771129810900,0.002,70233.0,70228.0,0.07319583]
[1771129811104,0.07118884,70236.0,70228.0,0.07119583]
[1771129811254,0.07118983,70235.0,70228.0,0.07119583]
[1771129811885,0.07118877,70236.0,70229.0,0.07119552]
[1771129812090,0.07158806,70237.0,70226.0,0.07119798]
[1771129812288,0.07118965,70235.0,70228.0,0.07119638]
[1771129812463,0.002,70234.0,70230.0,0.002]
[1771129812672,0.002,70234.0,70230.0,0.07319459]
[1771129813074,0.00012,70240.0,70233.0,0.07119079]
[1771129813285,0.00023116,70240.0,70233.0,0.07119079]
[1771129813709,0.00023116,70240.0,70234.0,0.07119048]
[1771129814282,0.00223116,70240.0,70234.0,0.07119048]
[1771129814886,0.00223116,70240.0,70235.0,0.07118927]
[1771129815076,0.00223116,70240.0,70234.0,0.07118868]
[1771129815276,0.00223116,70240.0,70234.0,0.07119059]
[1771129815472,0.00223116,70240.0,70232.0,0.07119189]
[1771129815473,0.00023116,70240.0,70235.0,0.07118949]
[1771129815729,0.00123116,70240.0,70234.0,0.002]
[1771129815971,0.00123116,70240.0,70238.0,0.07118643]
[1771129816174,0.0004,70245.0,70237.0,0.07118727]
[1771129816378,0.001,70240.0,70235.0,0.28475686]
[1771129816500,0.00044941,70245.0,70241.0,0.07118271]
[1771129816913,0.07118062,70244.0,70236.0,0.0711877]
[1771129817148,0.07118249,70242.0,70235.0,0.07118925]
[1771129817556,0.002,70240.0,70235.0,0.004]
[1771129817755,0.002,70240.0,70236.0,0.07118771]
[1771129818962,0.002,70240.0,70239.0,0.07118552]
[1771129819162,0.00044941,70245.0,70239.0,0.07118552]
[1771129819365,0.00044941,70245.0,70240.0,0.07118431]
[1771129819605,0.001,70244.0,70240.0,0.07118431]
[1771129819805,0.0004,70249.0,70245.0,0.07117867]
[1771129820090,0.0004,70249.0,70246.0,0.07117813]
[1771129820244,0.0004,70249.0,70248.0,0.0711764]
[1771129820584,0.0004,70253.0,70246.0,0.07117808]
[1771129820785,0.0004,70253.0,70247.0,0.07117741]
[1771129821539,0.0004,70253.0,70248.0,0.0711764]
[1771129822173,0.0004,70253.0,70247.0,0.07117741]
[1771129822367,0.0004,70253.0,70248.0,0.0711761]
[1771129822700,0.0004,70253.0,70247.0,0.0711773]
[1771129822926,0.0004,70253.0,70241.0,0.07118349]
[1771129823078,0.0013846,70250.0,70249.0,0.07117539]
[1771129823450,0.0013846,70250.0,70248.0,0.0751763]
[1771129823852,0.0003846,70250.0,70248.0,0.0711763]
[1771129824095,0.0013846,70250.0,70249.0,0.07517539]
[1771129824736,0.00045,70257.0,70256.0,0.07116829]
[1771129825017,0.00051793,70257.0,70256.0,0.07116829]
[1771129825357,0.00046793,70257.0,70256.0,0.07116829]
[1771129825985,0.00046793,70257.0,70255.0,0.07116926]
[1771129826185,0.00246793,70257.0,70256.0,0.007]
[1771129826379,0.00052,70260.0,70256.0,0.07816825]
[1771129826580,0.00052,70260.0,70257.0,0.07116721]
[1771129826843,0.00052,70260.0,70256.0,0.006]
[1771129827045,0.00052,70260.0,70252.0,0.0711716]
[1771129827268,0.0004,70258.0,70255.0,0.07116838]
[1771129827644,0.0004,70258.0,70253.0,0.07117119]
[1771129827844,0.0004,70258.0,70250.0,0.32288534]
[1771129828050,0.0004,70258.0,70256.0,0.07116811]
[1771129828445,0.0004,70258.0,70257.0,0.07116728]
[1771129828645,0.0004,70264.0,70252.0,0.02483059]
[1771129828893,0.001,70260.0,70258.0,0.07116597]
[1771129829046,0.001,70260.0,70259.0,0.07116525]
[1771129829248,0.0004,70264.0,70257.0,0.07116694]
[1771129829495,0.001,70258.0,70257.0,0.006]
[1771129829708,0.001,70258.0,70257.0,0.07716728]
[1771129829898,0.07156034,70264.0,70257.0,0.07116728]
[1771129830106,0.001,70260.0,70258.0,0.005]
[1771129830246,0.07156066,70264.0,70257.0,0.07116728]
[1771129830628,0.07116136,70263.0,70256.0,0.07116804]
[1771129831285,0.07156094,70264.0,70256.0,0.07116804]
[1771129831503,0.07116125,70263.0,70256.0,0.07116794]